Cogmind - Beta 13 X1 @@@ ROGUE MODE // 2023.07.22 @ 00:09:22 Player: Runia Result: Destroyed by AD-0RF with AD-0RF's Magmablaster Performance ------------- Evolutions (1) 500 Regions Visited (6) 1200 Robots Destroyed (77) 385 Value Destroyed (1595) 1595 Prototype IDs (10) 200 Alien Tech Used (0) 0 Bonus (120) 120 TOTAL SCORE: 4000 Bonus ------- High Alert Combat Kills 120 Cogmind --------- Core Integrity 0/400 Matter 211/300 Energy 162/170 System Corruption 0% Temperature Warning (348) Movement Treading (240) Ox1 Location -8/Mines Parts ------- > --- POWER (1) -------- Light Neutrino Core > --- PROPULSION (2) --- Light Treads Improved Treads > --- UTILITY (4) ------ High-capacity Storage Unit Improved Targeting Computer Experimental Core Analyzer > --- WEAPON (2) ------- 8R-AWN's Boregun 8R-AWN's Boregun > --- INVENTORY (20) --- Cold Fusion Reactor Advanced Myomer Leg Gravmag Array Combat Antigrav System Large Matter Pod (95) High-capacity Matter Pod (62) High-capacity Matter Pod (0) Advanced Weapon Cycler Minigun Enhanced Autogun Enhanced Autogun Enhanced Autogun Enhanced Autogun Rocket Launcher Mini Grenade Launcher Makeshift Spear Peak State ------------ > --- POWER ------------ Light Neutrino Core > --- PROPULSION ------- Light Treads Improved Treads > --- UTILITY ---------- Cooling System High-capacity Storage Unit Improved Targeting Computer Experimental Core Analyzer > --- WEAPON ----------- 8R-AWN's Boregun 8R-AWN's Boregun > --- INVENTORY -------- Cold Fusion Reactor Advanced Myomer Leg Gravmag Array Combat Antigrav System Large Matter Pod High-capacity Matter Pod High-capacity Matter Pod Advanced Weapon Cycler Minigun Enhanced Autogun Enhanced Autogun Enhanced Autogun Enhanced Autogun Rocket Launcher Mini Grenade Launcher Makeshift Spear [Rating: 52] Favorites ----------- Power Cooled Ion Engine Engine Cooled Ion Engine Power Core Light Neutrino Core Propulsion Light Treads Treads Light Treads Leg Aluminum Leg Wheel Armored Wheel Utility Light Armor Plating Device Improved Heat Sink Storage Large Storage Unit Processor Improved Targeting Computer Protection Light Armor Plating Weapon Enhanced Autogun Energy Gun Beam Rifle Ballistic Gun Enhanced Autogun Launcher Mini Grenade Launcher Special Weapon Plasma Cutter Piercing Weapon Makeshift Spear Build | -11 -10 -10 -9 -9 -9 -8 ------- Run | Jun Mat Min Mat Min Exi Min Slots Evolved 2 | . . . 2 . . . Power . | . . . . . . . Propulsion . | . . . . . . . Utility 2 | . . . 2 . . . Weapon . | . . . . . . . Parts Attached 73 | 3 19 8 21 3 19 . Power 5 | . 2 1 1 . 1 . Engine 4 | . 2 1 1 . . . Core 1 | . . . . . 1 . Reactor . | . . . . . . . Propulsion 11 | 2 2 . 4 . 3 . Treads 9 | 2 1 . 3 . 3 . Leg . | . . . . . . . Wheel 2 | . 1 . 1 . . . Hover . | . . . . . . . Flight . | . . . . . . . Utility 15 | . 3 1 6 . 5 . Device 3 | . 1 . 1 . 1 . Storage 4 | . 2 . . . 2 . Processor 2 | . . . 1 . 1 . Hackware . | . . . . . . . Protection 6 | . . 1 4 . 1 . Artifact . | . . . . . . . Weapon 42 | 1 12 6 10 3 10 . Energy Gun 5 | 1 3 1 . . . . Energy Cannon . | . . . . . . . Ballistic Gun 17 | . 4 3 6 . 4 . Ballistic Cannon . | . . . . . . . Launcher 14 | . 5 2 4 1 2 . Special Weapon 4 | . . . . . 4 . Impact Weapon . | . . . . . . . Slashing Weapon . | . . . . . . . Piercing Weapon 2 | . . . . 2 . . Special Melee Weapon . | . . . . . . . Unidentified Prototypes 6 | . . . 3 . 3 . Corrupted Parts 3 | . . 3 . . . . System Corruption 14 | . . 14 . . . . Parts Lost 13 | . 1 . . . 11 1 Power 1 | . . . . . 1 . Propulsion 4 | . 1 . . . 3 . Utility 4 | . . . . . 3 1 Weapon 4 | . . . . . 4 . Highest Loss Streak 8 | . 1 . . . 8 1 To Critical Strikes 3 | . . . . . 3 . Average Slot Usage (%) 96 | . 98 100 95 100 94 95 Engine 10 | . 14 14 11 11 6 . Treads 19 | . 21 14 15 22 20 22 Wheel 4 | . 6 14 6 . . . Device 5 | . 12 12 . . 5 6 Storage 12 | . 14 14 11 11 14 11 Processor 7 | . . . 6 11 12 22 Protection 12 | . . 1 22 22 11 . Energy Gun 3 | . 15 12 . . . . Ballistic Gun 16 | . 11 15 21 13 15 22 Piercing Weapon 2 | . . . . 7 5 . Naked Turns . | . . . . . . . Heaviest Build 65 | 13 31 34 43 40 65 62 Greatest Support 43 | 40 40 12 40 40 43 43 Greatest Overweight (x) 3 | . 2 2 3 . 2 1 Average Overweight (x) 1 | . 1 2 1 . . 1 Largest Inventory Capacity 20 | 8 15 15 15 15 20 20 Average Capacity 15 | 8 10 15 15 15 19 20 Most Carried 20 | 6 12 15 15 15 20 17 Average Carried 13 | 4 8 13 14 15 15 17 Final Capacity 20 | 8 15 15 15 15 20 20 Final Carried 17 | 3 12 14 15 15 17 17 Class Distribution -------------------- 92% | Mutant 7% | Scavenger-Mutant Dominant Class ---------------- Mutant | -10/Materials Mutant | -10/Mines Mutant | -9/Materials Mutant | -9/Mines Mutant | -9/Exiles Scavenger-Mutant | -8/Mines Resources | -11 -10 -10 -9 -9 -9 -8 ----------- Run | Jun Mat Min Mat Min Exi Min Matter Collected 2717 | 200 410 . 1212 95 800 . Remotely . | . . . . . . . Salvage Created 2725 | . 605 93 1536 71 420 . Parts 194 | . 34 6 83 10 61 . Haulers Intercepted 6 | . 2 . 4 . . . Recyclers Shooed 5 | . 3 . 2 . . . Parts Field Recycled . | . . . . . . . Retrieved Matter . | . . . . . . . Parts Self-Destructed . | . . . . . . . Prevented . | . . . . . . . Kills | -11 -10 -10 -9 -9 -9 -8 ------- Run | Jun Mat Min Mat Min Exi Min Combat Hostiles Destroyed 56 | . 16 5 25 5 5 . Guns 35 | . 8 . 22 4 1 . AOE 21 | . 8 5 3 1 4 . Classes Destroyed 12 | . 5 1 4 1 1 . Worker 4 | . . 1 2 1 . . Builder 1 | . . . 1 . . . Hauler 6 | . 2 . 4 . . . Recycler 6 | . 2 . 4 . . . Mechanic 2 | . . . 2 . . . Watcher 2 | . 1 . 1 . . . Swarmer 18 | . 6 3 5 4 . . Grunt 22 | . 10 2 10 . . . Duelist 1 | . . . 1 . . . Sentry 9 | . . . 9 . . . Zionite 2 | . . . . . 2 . Assembled 5 | . . . . 1 4 . Best Kill Streak 8 | . 5 3 8 5 4 . Combat Bots Only 5 | . 3 3 5 4 4 . Max Kills in Single Turn 3 | . 3 2 2 2 2 . Gunslinging 1 | . . . 1 1 . . Exploded 2 | . 2 2 1 1 2 . Melee . | . . . . . . . Uniques/NPCs Destroyed 4 | . . . . . 4 . 8R-AWN (-9/Exiles) EX-HEX (-9/Exiles) EX-BIN (-9/Exiles) EX-DEC (-9/Exiles) Combat | -11 -10 -10 -9 -9 -9 -8 -------- Run | Jun Mat Min Mat Min Exi Min Damage Taken 3207 | . 621 121 771 10 1370 314 Core 619 | . 167 51 64 . 269 68 Absorbed by Shields . | . . . . . . . Regen/Repaired (Parts) 102 | . 102 . . . . . Core Remaining (%) 56 | 100 . 12 . . . . Volleys Fired 266 | . 61 8 87 6 97 7 Largest 2 | . 2 2 2 2 2 2 Hottest 90 | . 90 76 50 50 60 60 Shots Fired 459 | . 111 11 169 11 143 14 Gun 417 | . 103 6 164 10 120 14 Cannon . | . . . . . . . Launcher 24 | . 8 5 5 1 5 . Special 18 | . . . . . 18 . Kinetic 352 | . 41 3 164 10 120 14 Thermal 65 | . 62 3 . . . . Explosive 24 | . 8 5 5 1 5 . Electromagnetic . | . . . . . . . Impact 18 | . . . . . 18 . Robot Hit Streak 18 | . 17 10 18 14 15 4 Robot Miss Streak 5 | . 5 1 4 1 4 2 Penetration Max 1 | . . . . . 1 . Secondary Targets 5 | . 1 . 3 1 . . Max Gunslinging Chain 1 | . 1 . 1 1 . . Shots Hit Robots 318 | . 74 6 115 9 105 9 Core Hits 135 | . 32 8 51 6 34 4 Critical Kills 2 | . . . . . 2 . Critical Parts Destroyed 10 | . . . 1 . 7 2 Critical Strikes 15 | . 2 . 1 . 10 2 Burn 2 | . 2 . . . . . Destroy 12 | . . . 1 . 9 2 Sever 1 | . . . . . 1 . Melee Attacks 3 | . . . . 3 . . Impact . | . . . . . . . Slashing . | . . . . . . . Piercing 3 | . . . . 3 . . Sneak Attacks . | . . . . . . . Combat Hostiles . | . . . . . . . Follow-up Attacks . | . . . . . . . Damage Inflicted 6542 | . 1438 521 2289 203 1932 159 Guns 4852 | . 918 80 1931 155 1609 159 Cannons . | . . . . . . . Explosions 1591 | . 519 441 358 48 225 . Melee . | . . . . . . . Ramming 1 | . 1 . . . . . Kinetic 4288 | . 398 36 1931 155 1609 159 Thermal 645 | . 520 44 81 . . . Explosive 1510 | . 519 441 277 48 225 . Electromagnetic . | . . . . . . . Impact 98 | . . . . . 98 . Slashing . | . . . . . . . Piercing . | . . . . . . . Highest Corruption 14 | . . 14 . . . . Average Corruption 12 | . . 12 . . . . Corruption Purged . | . . . . . . . Corruption Blocked . | . . . . . . . Effects 2 | . . 2 . . . . Matter Fused 2 | . . 2 . . . . Overload Shots . | . . . . . . . Overflow Damage 79 | . 14 65 . . . . Projectiles . | . . . . . . . Explosions 79 | . 14 65 . . . . Melee . | . . . . . . . Knockbacks 2 | . . . . . 2 . Impact 2 | . . . . . 2 . Kinetic . | . . . . . . . Secondary . | . . . . . . . Self-Inflicted Damage 60 | . 41 8 . . 11 . Shots 3 | . 1 1 . . 1 . Rammed 1 | . 1 . . . . . Targets Rammed 1 | . 1 . . . . . Kicked . | . . . . . . . Crushed . | . . . . . . . Highest Temperature 328 | . 315 18 113 24 6 328 Average Temperature 56 | . 167 14 30 11 3 159 Received Heat Transfer 1124 | . 273 75 276 . 20 480 Effects 1 | . 1 . . . . . Interference 1 | . 1 . . . . . Siege Activations . | . . . . . . . Robots Corrupted . | . . . . . . . Combat Hostiles . | . . . . . . . Parts Fried . | . . . . . . . Impact Corruptions . | . . . . . . . Robots Melted . | . . . . . . . Combat Hostiles . | . . . . . . . Parts Melted 2 | . 2 . . . . . Heat Transferred 1780 | . 1569 111 100 . . . Parts Sabotaged . | . . . . . . . Parts Stolen . | . . . . . . . Parts Stripped . | . . . . . . . Power Chain Reactions . | . . . . . . . Missiles Intercepted . | . . . . . . . Alert | -11 -10 -10 -9 -9 -9 -8 ------- Run | Jun Mat Min Mat Min Exi Min Peak Influence 681 | . 315 273 681 327 . 2 Initial 231 | . . 112 27 231 . . Average 269 | . 148 205 447 184 . . Maximum Alert Level 2 | . 1 1 2 1 . . Low Security (%) 42 | 100 76 41 8 56 . 100 Level 1 32 | . 23 58 23 43 . . Level 2 24 | . . . 68 . . . Level 3 . | . . . . . . . Level 4 . | . . . . . . . Level 5 . | . . . . . . . High Security . | . . . . . . . Max Security . | . . . . . . . Squads Dispatched 7 | . 2 . 5 . . . Investigation 5 | . 2 . 3 . . . Extermination . | . . . . . . . Reinforcement 2 | . . . 2 . . . Assault . | . . . . . . . Garrison . | . . . . . . . Intercept . | . . . . . . . Searches Triggered . | . . . . . . . Construction Impeded . | . . . . . . . Haulers Reinforced . | . . . . . . . Active Scanning Responses . | . . . . . . . Cargo Convoy Interrupts . | . . . . . . . Stealth | -11 -10 -10 -9 -9 -9 -8 --------- Run | Jun Mat Min Mat Min Exi Min Distress Signals 8 | . 3 . 5 . . . Communications Jammed . | . . . . . . . Distress Signals . | . . . . . . . Times Spotted 109 | . 21 4 40 4 39 1 Peak Tracking Total 10 | . 5 3 6 4 10 1 Tactical Retreats 18 | . . . 2 . 16 . Traps | -11 -10 -10 -9 -9 -9 -8 ------- Run | Jun Mat Min Mat Min Exi Min Traps Triggered 3 | . 1 . 2 . . . Indirectly . | . . . . . . . Trap Hack Attempts . | . . . . . . . Triggered . | . . . . . . . Disarmed . | . . . . . . . Reprogrammed . | . . . . . . . Reused . | . . . . . . . Traps Extracted . | . . . . . . . Installed . | . . . . . . . Triggered . | . . . . . . . Machines | -11 -10 -10 -9 -9 -9 -8 ---------- Run | Jun Mat Min Mat Min Exi Min Machines Disabled 18 | . 6 . 2 . 10 . Max in Single Turn 2 | . 2 . 1 . 2 . Machines Repaired . | . . . . . . . Machines Sabotaged . | . . . . . . . Overloaded Fab Kills . | . . . . . . . Hacking | -11 -10 -10 -9 -9 -9 -8 --------- Run | Jun Mat Min Mat Min Exi Min Machines Accessed 16 | . 6 1 8 . 1 . Terminals 8 | . 3 . 5 . . . Fabricators . | . . . . . . . Repair Stations 1 | . 1 . . . . . Recycling Units 3 | . 2 . 1 . . . Scanalyzers 2 | . . . 2 . . . Garrison Access . | . . . . . . . Total Hacks 38 | . 13 1 23 . 1 . Successful 21 | . 7 1 12 . 1 . Failed 17 | . 6 . 11 . . . Catastrophic 2 | . 1 . 1 . . . Database Lockouts . | . . . . . . . Manual 14 | . 8 . 6 . . . Terminals 27 | . 9 . 18 . . . Fabricators . | . . . . . . . Repair Stations 2 | . 2 . . . . . Recycling Units 3 | . 2 . 1 . . . Scanalyzers 4 | . . . 4 . . . Garrison Access . | . . . . . . . Terminal Hacks 14 | . 3 1 9 . 1 . Record 1 | . . . . . 1 . Part Schematic 2 | . 1 . 1 . . . Robot Analysis 1 | . . . 1 . . . Prototype ID Bank 2 | . 1 . 1 . . . Open Door 1 | . . 1 . . . . Terminal Index 1 | . 1 . . . . . Locate Traps 2 | . . . 2 . . . Hauler Manifests 2 | . . . 2 . . . Zone Layout 2 | . . . 2 . . . Fabricator Hacks . | . . . . . . . Repair Station Hacks 2 | . 2 . . . . . Scan Component 1 | . 1 . . . . . Repair 1 | . 1 . . . . . Recycling Unit Hacks . | . . . . . . . Scanalyzer 2 | . . . 2 . . . Insert Component 1 | . . . 1 . . . Analyze 1 | . . . 1 . . . Garrison Access Hacks . | . . . . . . . Unauthorized Hacks 3 | . 2 . 1 . . . Terminals . | . . . . . . . Fabricators . | . . . . . . . Repair Stations . | . . . . . . . Recycling Units 3 | . 2 . 1 . . . Tunnel 3 | . 2 . 1 . . . Scanalyzers . | . . . . . . . Garrison Access . | . . . . . . . Data Cores Recovered . | . . . . . . . Used . | . . . . . . . Hacking Detections 10 | . 3 . 7 . . . Full Trace Events 2 | . 1 . 1 . . . Feedback Events . | . . . . . . . Feedback Blocked . | . . . . . . . Robot Schematics Acquired . | . . . . . . . Robots Built . | . . . . . . . Authchips . | . . . . . . . Time . | . . . . . . . Total Robot Build Rating . | . . . . . . . Part Schematics Acquired 2 | . 1 . 1 . . . Parts Built . | . . . . . . . Authchips . | . . . . . . . Time . | . . . . . . . Total Part Build Rating . | . . . . . . . Parts Repaired 1 | . 1 . . . . . Time 26 | . 26 . . . . . Parts Recycled . | . . . . . . . Recycled Matter . | . . . . . . . Retrieved Matter . | . . . . . . . Retrieved Components . | . . . . . . . Parts Scanalyzed 1 | . . . 1 . . . Part Schematics Acquired . | . . . . . . . Parts Damaged . | . . . . . . . Bothacking | -11 -10 -10 -9 -9 -9 -8 ------------ Run | Jun Mat Min Mat Min Exi Min Used RIF Installer . | . . . . . . . Robots Hacked . | . . . . . . . Non-combat . | . . . . . . . Combat . | . . . . . . . Robot Hacks Applied . | . . . . . . . Relay Couplers Released . | . . . . . . . Fabnet Peak Effective % . | . . . . . . . Robots Rewired . | . . . . . . . Allies Hacked . | . . . . . . . Hacks Repelled . | . . . . . . . Allies | -11 -10 -10 -9 -9 -9 -8 -------- Run | Jun Mat Min Mat Min Exi Min Total Allies . | . . . . . . . Largest Group . | . . . . . . . Highest-Rated Group . | . . . . . . . Highest-Rated Ally . | . . . . . . . Total Orders . | . . . . . . . Ally Attacks . | . . . . . . . Total Damage . | . . . . . . . Kills . | . . . . . . . Allies Corrupted . | . . . . . . . Allies Melted . | . . . . . . . Intel | -11 -10 -10 -9 -9 -9 -8 ------- Run | Jun Mat Min Mat Min Exi Min Robot Analysis Total 1 | . . . 1 . . . Derelict Logs Recovered 1 | . . . . 1 . . Drone Launches . | . . . . . . . Drone Recoveries . | . . . . . . . Exploration | -11 -10 -10 -9 -9 -9 -8 ------------- Run | Jun Mat Min Mat Min Exi Min Turns Passed 5569 | 5 992 534 1373 911 1709 45 Spaces Moved 2181 | 1 526 118 722 208 595 11 Core . | . . . . . . . Treads 1341 | 1 201 . 325 208 595 11 Legs . | . . . . . . . Wheels 840 | . 325 118 397 . . . Hover . | . . . . . . . Flight . | . . . . . . . Fastest Speed 105 | 160 105 120 120 160 160 240 Average Speed 167 | 160 133 120 144 160 236 240 Slowest Speed 320 | 160 160 120 160 160 320 240 Overloaded Moves . | . . . . . . . Propulsion Burnouts . | . . . . . . . Robots Hopped . | . . . . . . . Cave-ins Triggered . | . . . . . . . Exploration Rate (%) 47 | 2 77 37 75 58 75 8 Regions Visited 6 Branch Regions 4 Pre-discovered Areas 5 | . 2 . 1 1 1 . Known Exits Taken . | . . . . . . . Unknown Exits Taken 6 | 1 1 1 1 1 1 . Scrap Searched 2 | . . . . 2 . . Spaces Dug 28 | . . 12 7 3 6 . Terrain Destroyed 209 | . 58 28 74 16 24 9 Melee 3 | . . . . 3 . . Projectile 19 | . . . . . 10 9 AOE 186 | . 58 28 74 13 13 . Terrain Rammed . | . . . . . . . Walls Destroyed . | . . . . . . . Machines Disabled . | . . . . . . . Actions | -11 -10 -10 -9 -9 -9 -8 --------- Run | Jun Mat Min Mat Min Exi Min Total 3693 | 6 702 498 928 775 766 18 Wait 1080 | . 72 356 64 554 34 . Move 2175 | . 525 117 721 207 594 11 Hop . | . . . . . . . Pick Up 50 | . 15 4 15 1 15 . Fast Attach 12 | . 3 2 5 . 2 . Attach 17 | 3 1 . 3 . 10 . Detach 2 | . . . 1 . 1 . Swap 44 | . 15 6 13 3 7 . Drop 43 | 3 9 5 19 1 6 . Fire 266 | . 61 8 87 6 97 7 Melee 3 | . . . . 3 . . Ram . | . . . . . . . Kick . | . . . . . . . Crush 1 | . 1 . . . . . Escape Stasis . | . . . . . . . Rewire . | . . . . . . . Trap . | . . . . . . . Miscellaneous . | . . . . . . . Route ------- -11/Junkyard -10/Materials (discovered 3 exits: *Mat x2 / *Min) -10/Mines -9/Materials (discovered 4 exits: [*Mat x2] / [*Min x2]) -9/Mines (discovered 2 exits: [*Mat] / *Exi) -9/Exiles -8/Mines History --------- Turn | Location | Event 6 | -11/Junkyard | Discovered new exit (range 0) 6 | -11/Junkyard | Entered Materials 305 | -10/Materials | Build established: Mutant 486 | -10/Materials | Discovered new exit (range 9) 522 | -10/Materials | Core integrity fell below 50% 600 | -10/Materials | Discovered new exit (range 15) 696 | -10/Materials | Discovered new exit (range 16) 887 | -10/Materials | Repaired Lgt. Treads 998 | -10/Materials | Entered Mines 1005 | -10/Mines | Received a Rocket Launcher from a helpful Derelict 1052 | -10/Mines | Met a Derelict who couldn't figure out how to use a Trap Extractor 1085 | -10/Mines | Found a damaged Exp. Sensor Array with a note attached 1094 | -10/Mines | Core integrity fell below 20% 1095 | -10/Mines | Found Prototype Device 1481 | -10/Mines | System corruption reached 10% 1524 | -10/Mines | Discovered new exit (range 7) 1532 | -10/Mines | Entered Materials 1532 | -9/Materials | Evolved 2 slots: Utility x2 1532 | -9/Materials | Identified Exp. Sensor Array 1540 | -9/Materials | Discovered new exit (range 15) 2280 | -9/Materials | Discovered new exit (range 16) 2772 | -9/Materials | Discovered new exit (range 10) 2862 | -9/Materials | Discovered new exit (range 15) 2905 | -9/Materials | Entered Mines 3051 | -9/Mines | Discovered new exit (range 12) 3074 | -9/Mines | Learned Materials security intel 3098 | -9/Mines | Assembled infested the area 3137 | -9/Mines | A weapon hastily lodged in a ceiling crevice suddenly fell to the ground 3808 | -9/Mines | Deemed a non-threat by the Exiles lab entrance 3809 | -9/Mines | Discovered new exit (range 5) 3816 | -9/Mines | Entered Exiles 3855 | -9/Exiles | Met 8R-AWN 3882 | -9/Exiles | Met EX-HEX 4251 | -9/Exiles | Met EX-DEC 4261 | -9/Exiles | Learned location of Zion (-6) 4388 | -9/Exiles | Discovered new exit (range 12) 4586 | -9/Exiles | Attacked by the Exiles 4739 | -9/Exiles | Core integrity fell below 50% 4759 | -9/Exiles | Lost 8 parts (1n3u4w) 4804 | -9/Exiles | Core integrity fell below 20% 4813 | -9/Exiles | Destroyed 8R-AWN 4834 | -9/Exiles | Found Prototype Ballistic Gun 4839 | -9/Exiles | Found Prototype Ballistic Gun 4851 | -9/Exiles | Identified 8R-AWN's Boregun (x2) 5135 | -9/Exiles | Destroyed EX-HEX 5227 | -9/Exiles | Destroyed EX-BIN 5272 | -9/Exiles | Destroyed EX-DEC 5289 | -9/Exiles | Found Prototype Processor 5332 | -9/Exiles | Identified Exp. Core Analyzer 5448 | -9/Exiles | Build established: Scavenger-Mutant 5525 | -9/Exiles | Entered Mines 5551 | -8/Mines | AD-0RF came to Exiles' defense 5570 | -8/Mines | Destroyed by AD-0RF with AD-0RF's Magmablaster Last Messages --------------- 05555_ HV Slug penetrates AD-0RF. 05555_ HV Slug penetrates Wall. 05558_ HV Slug penetrates AD-0RF. 05558_ AD-0RF suffers critical hit (Destroy). 05558_ Destroyed Arm. Huge Wheel. 05558_ HV Slug penetrates Wall. 05558_ HV Slug penetrates AD-0RF. 05558_ HV Slug penetrates Wall. 05558_ Cooling System destroyed. 05561_ HV Slug penetrates Wall. 05561_ HV Slug penetrates AD-0RF. 05561_ HV Slug penetrates Wall. 05564_ HV Slug penetrates AD-0RF. 05564_ HV Slug penetrates Wall. 05567_ HV Slug penetrates AD-0RF. 05567_ HV Slug penetrates Wall. 05570_ HV Slug penetrates AD-0RF. 05570_ HV Slug penetrates Earth. 05570_ HV Slug penetrates AD-0RF. 05570_ HV Slug penetrates Earth. Map ----- +----------------------------------------------------+ | ?????????????????????????????????????????????????? | | ?????????????????????????????????????????????????? | | ?????????????????????????#???????????????????????? | | ????????????????????????? ###????????????????????? | | ????????????????????????? ####?????????????????? | | ????????????????????????? ##????????????????? | | ????????????????????????? #????????????????? | | ????????????????????????? ?????????????????? | | ????????????????????????? ??????????????????? | | ?????????????????????????# #??????????????????? | | ?????????????????????????# #??????????????????? | | ?????????????????????????# ##?????????????????? | | ?????????????????????????# ##????????????????? | | ????????????????????????## #????????????????? | | ???????????????????????## #????????????????? | | ??????????????????????## ##???????????????? | | ??????????????????????# ###?????????????? | | ??????????????????????# ##????????????? | | ??????????????????????## #????????????? | | ???????????????????????## t #????????????? | | ????????????????????????# ###### #???????????? | | ????????????????????????# #?????# #???????????? | | ????????????????????????# #?????? ??????????? | | ????????????????????????# #??????? ??????????? | | ????????????????????????# #???????? #???????????? | | ????????????????????????#@#????????? ???????????? | | ????????????????????????# ;#?????????????????????? | | ????????????????????????#i;#?????????????????????? | | ???????????????????????? ?????????????????????? | | ????????????????????????#;#; ????????????????????? | | ????????????????????????# ## #???????????????????? | | ????????????????????????# #? #???????????????????? | | ????????????????????????# #??#???????????????????? | | ????????????????????????# #??????????????????????? | | ????????????????????????? ???????????????????????? | | ?????????????????????????#???????????????????????? | | ?????????????????????????????????????????????????? | | ?????????????????????????????????????????????????? | | ?????????????????????????????????????????????????? | | ?????????????????????????????????????????????????? | | ?????????????????????????????????????????????????? | | ?????????????????????????????????????????????????? | | ?????????????????????????????????????????????????? | | ?????????????????????????????????????????????????? | | ?????????????????????????????????????????????????? | | ?????????????????????????????????????????????????? | | ?????????????????????????????????????????????????? | | ?????????????????????????????????????????????????? | | ?????????????????????????????????????????????????? | | ?????????????????????????????????????????????????? | +----------------------------------------------------+ Best States ------------- Heat Dissipation 50 Energy Generation 19 Energy Capacity 280 Matter Stores 450 Matter Capacity 450 Sight Range 16 Terrain Scan Density 10 Armor Coverage 450 Evasion (%) 40 Targeting Accuracy 6 Core Analysis 8 Recoil Reduction 2 Item Schematics ----------------- Huge Storage Unit | -10/Materials | Hacked Hcp. Storage Unit | -9/Materials | Hacked Robot Schematics ------------------ None Fabricated ------------ Nothing Alien Tech Used ----------------- None Achievements -------------- None Challenges ------------ None Game ------ Seed DroneGuidanceMount Manual? 0 Play Time 00:27:25 Cumulative 811.0 hours Start 2023.07.21 @ 23:42:03 End 2023.07.22 @ 00:09:22 Sessions 1 Manual Loads 0 Difficulty Rogue Special Mode None Game No. 702 Rogue 702 Adventurer 0 Explorer 0 Win Type - Total 39 Types 14/7/7/1/1/1/6/1/1 Lore% 92 Gallery% 96 Achievement% 81 Wizard Run 0 Options --------- ASCII 0 Keyboard 0 Movement Mouse Keybinds 1 Fullscreen 2 Font 24/Smallcaps Map View 76x50 Tactical HUD 1 Map Filters NONE Filters NONE Steam 1 RUN: 8663731d-094c-4df1-a074-8578375d271e